{"text_format":"3","workbook":"xlsx","n_sheets":3,"sheets":["ЗЭ РОШ 4-8","ЗЭ РОШ 4-8 школы","Проверки"],"not_rendered":{"defined_names":8},"read":"whole","date_system":"1900"}

{"sheet":"ЗЭ РОШ 4-8","index":0,"n_rows":51,"n_cols":27,"rows_kept":51}
["№","Район","победители и призеры","победители и призеры","победители и призеры","победители и призеры","победители и призеры","победители и призеры","победители и призеры","победители и призеры","победители и призеры","победители и призеры","победители и призеры","победители и призеры","победители и призеры","победители и призеры","победители и призеры","победители и призеры","победители и призеры","победители и призеры","победители и призеры","победители и призеры","победители и призеры","победители и призеры","победители и призеры","победители и призеры"]
[null,null,"астрономия ","история","русский язык","физика ","франц яз","химия","экономика","биология","информатика","литература","математика","обж","общество","технология","экология","английский ","география","мхк","испанский","итальянский","китайский","немецкий","право","физра"]
[1,"Авиастроительный-Ново-Савиновский",0,0,6,2,5,0,0,1,0,0,49,3,2,0,0,11,0,1,0,1,2,1,0,2,{"$f":"SUM(C3:Z3)","v":86}]
[2,"Агрызский",0,0,0,0,0,0,0,0,0,0,0,0,0,0,0,0,0,0,0,0,0,0,0,0,0]
[3,"Азнакаевский",0,1,0,0,0,0,0,0,0,0,1,1,0,1,0,0,0,0,0,0,1,0,0,1,6]
[4,"Аксубаевский",0,1,0,0,0,0,0,0,0,0,0,0,0,0,0,0,0,0,0,0,0,0,0,0,1]
[5,"Актанышский",0,2,1,0,0,0,1,0,0,1,1,0,0,0,0,0,1,1,0,0,0,0,0,5,13]
[6,"Алексеевский",0,0,0,0,0,0,0,0,0,0,0,0,0,0,0,0,0,0,0,0,0,0,0,0,0]
[7,"Алькеевский",0,0,0,0,0,0,0,0,0,0,0,0,0,0,0,1,0,0,0,0,0,0,0,1,2]
[8,"Альметьевский",0,0,5,0,0,0,0,0,0,0,3,0,0,2,0,2,0,0,0,0,0,0,0,3,15]
[9,"Апастовский",0,0,0,0,0,0,0,0,0,0,0,0,0,0,0,0,0,0,0,0,0,0,0,0,0]
[10,"Арский",0,0,1,0,0,0,0,1,0,0,3,3,0,0,1,1,0,0,0,0,0,0,0,3,13]
[11,"Атнинский",0,0,0,0,0,0,0,0,0,0,0,0,0,0,0,0,0,0,0,0,0,0,0,0,0]
[12,"Бавлинского",0,0,0,0,0,0,0,0,0,0,1,0,0,0,0,0,0,0,0,0,0,0,0,1,2]
[13,"Балтасинский",0,0,1,0,0,1,0,0,0,0,3,1,0,0,0,0,0,0,0,0,0,0,0,0,6]
[14,"Бугульминский",0,2,4,0,0,0,0,0,0,1,6,15,0,2,2,1,0,0,0,0,0,0,0,7,40]
[15,"Буинский",0,0,0,0,0,0,0,0,0,0,0,0,0,0,0,0,0,0,0,0,0,0,0,0,0]
[16,"Вахитовский-Приволжский",7,5,17,16,0,13,4,5,9,0,133,9,6,1,7,27,5,1,0,3,0,2,3,8,281]
[17,"Верхнеуслонский",0,0,2,4,0,0,0,0,0,1,5,2,0,1,0,1,0,0,0,0,0,0,0,0,16]
[18,"Высокогорский",0,0,0,0,0,0,0,0,0,0,2,7,0,0,0,0,0,0,0,0,0,0,0,0,9]
[19,"Дрожжановский",0,0,0,0,0,0,0,0,0,0,0,0,0,0,0,0,0,0,0,0,0,0,0,0,0]
[20,"Елабужский",0,0,0,0,0,0,0,1,0,0,0,0,0,2,0,1,0,0,0,0,0,0,0,0,4]
[21,"Заинский",0,0,1,1,0,0,0,1,0,0,2,0,1,0,0,0,0,0,0,0,0,0,0,4,10]
[22,"Зеленодольский",0,0,6,0,0,0,0,0,0,1,7,1,0,1,1,2,0,0,0,0,0,0,0,1,20]
[23,"Кайбицкий",0,0,0,0,0,0,0,0,0,0,0,0,0,0,0,0,0,0,0,0,0,0,0,0,0]
[24,"Камско-Устьинский",0,0,0,0,0,0,0,0,0,0,1,7,0,0,0,0,0,0,0,0,0,0,0,0,8]
[25,"Кировский-Московский",7,1,5,4,2,2,0,1,5,1,56,3,8,0,0,6,1,0,0,0,0,1,6,0,109]
[26,"Кукморский",0,0,0,0,0,0,0,0,0,0,1,4,0,2,0,1,0,0,0,0,0,0,0,2,10]
[27,"Лаишевский",0,1,1,0,0,0,0,0,0,1,0,0,0,0,0,1,0,0,0,0,0,0,0,1,5]
[28,"Лениногорский",0,0,2,0,0,0,0,0,0,0,4,0,0,0,0,1,0,0,0,0,0,0,0,0,7]
[29,"Мамадышский",0,0,0,0,0,0,0,2,0,0,2,4,0,3,0,0,0,0,0,0,0,0,0,6,17]
[30,"Менделеевский",0,1,0,0,0,0,0,0,0,0,0,0,0,0,0,1,0,0,0,0,0,0,0,0,2]
[31,"Мензелинский",0,0,1,0,0,0,0,0,0,1,0,1,0,0,0,1,0,0,0,0,0,0,0,0,4]
[32,"Муслюмовский",0,0,0,0,0,0,0,1,0,0,0,0,0,0,0,0,0,0,0,0,0,0,0,0,1]
[33,"Набережные Челны",1,4,21,3,0,2,3,0,3,1,78,13,1,4,0,13,2,9,0,0,0,5,3,5,{"$f":"SUM(C35:Z35)","v":171}]
[34,"Нижнекамский",0,1,4,1,0,4,1,0,0,0,15,1,0,5,0,1,1,1,0,0,3,0,0,8,46]
[35,"Новошешминский",0,0,0,0,0,0,0,0,0,0,0,0,0,0,0,0,0,0,0,0,0,0,0,0,0]
[36,"Нурлатский",0,2,2,0,0,0,0,0,0,0,2,1,0,1,0,1,0,0,0,0,0,0,0,0,9]
[37,"Пестречинский",0,0,0,0,0,0,0,0,0,0,0,2,0,0,1,0,1,0,0,0,0,0,0,0,4]
[38,"Рыбно-Слободской",0,0,0,0,0,0,0,0,0,0,1,3,0,0,0,0,0,0,0,0,0,0,0,0,4]
[39,"Сабинский",1,0,1,0,0,0,0,0,0,1,0,6,1,4,0,0,1,0,0,0,0,0,2,4,21]
[40,"Сармановский",0,1,0,0,0,0,0,0,0,0,2,1,0,0,0,1,0,0,0,0,0,0,0,0,5]
[41,"Советский",0,1,3,0,0,1,0,0,0,0,20,2,1,0,2,10,3,0,1,0,0,2,0,0,46]
[42,"Спасский",0,0,0,0,0,0,0,0,0,0,0,1,0,2,0,0,0,0,0,0,0,0,0,0,3]
[43,"Тетюшский",0,0,1,0,0,0,0,1,0,0,0,2,0,0,0,0,0,0,0,0,0,0,0,0,4]
[44,"Тукаевский",0,0,0,0,0,0,0,1,0,0,0,0,0,0,0,1,0,0,0,0,0,0,0,0,2]
[45,"Тюлячинского",0,0,0,0,0,0,0,0,0,0,0,0,0,0,0,0,0,0,0,0,0,0,0,0,0]
[46,"Черемшанский",0,0,0,0,0,0,0,0,0,0,0,2,0,0,0,0,1,0,0,0,0,0,0,0,3]
[47,"Чистопольский",0,0,2,0,0,0,0,0,0,1,4,1,0,2,0,1,1,0,0,0,0,0,0,1,13]
[48,"Ютазинский",0,0,1,0,0,0,0,0,0,1,0,3,0,0,0,0,0,0,0,0,0,0,0,1,6]
[null,null,{"$f":"SUM(C3:C50)","v":16},{"$f":"SUM(D3:D50)","v":23},88,31,7,23,9,15,17,11,402,99,20,33,14,86,17,13,1,4,6,11,14,64]

{"sheet":"ЗЭ РОШ 4-8 школы","index":1,"n_rows":247,"n_cols":28,"rows_kept":247}
["№ п/п","Муниципалитет","ОУ","астрономия","история","рус яз","физика","франц язык","химия","экономика","биология","информатика","литература","математика","обж","общество","технология","экология","английский","география","мхк","испанский","итальянский","китайский","немецкий","право","физра"]
[1,"Авиастроительный","МАОУ «Гимназия №37» Авиастроительного района г. Казани",{"$nulls":11},1,{"$nulls":5},1,{"$nulls":6},{"$f":"SUM(F2:AA2)","v":2}]
[2,"Авиастроительный","МБОУ  \"Гимназия №36\" Авиастроительного района г. Казани",{"$nulls":10},3,{"$nulls":10},1,null,null,{"$f":"SUM(F3:AA3)","v":4}]
[3,"Авиастроительный","МБОУ \"Гимназия №33\" Авиастроительного района г.Казани",{"$nulls":4},4,{"$nulls":5},1,1,{"$nulls":3},4,{"$nulls":8},10]
[4,"Авиастроительный","МБОУ \"Средняя общеобразовательная школа № 54 с углубленным изучением отдельных предметов\" Авиастроительного района г.Казани\"",{"$nulls":10},1,{"$nulls":13},1]
[5,"Авиастроительный","МБОУ \"Средняя общеобразовательная школа № 117\" Авиастроительного района г.Казани\"",{"$nulls":10},2,{"$nulls":13},2]
[6,"Авиастроительный","МБОУ «Средняя общеобразовательная школа №62 с углубленным изучением отдельных предметов» Авиастроительного района",{"$nulls":10},1,1,{"$nulls":12},2]
[7,"Азнакаевский","МБОУ \"Средняя общеобразовательная школа №2 г.Азнакаево\" Азнакаевского муниципального района Республики Татарстан",{"$nulls":10},1,1,{"$nulls":12},2]
[8,"Азнакаевский","МБОУ \"Средняя общеобразовательная школа №3 поселка городского типа Актюбинский\" Азнакаевского муниципального района Республики Татарстан",{"$nulls":23},1,1]
[9,"Азнакаевский ","МБОУ «Средняя общеобразовательная школа №5 с углубленным изучением английского языка города Азнакаево» Азнакаевского муниципального района Республики Татарстан ",{"$nulls":20},1,{"$nulls":3},1]
[10,"Азнакаевский  ","МБОУ \"Гимназия города Азнакаево\" Азнакаевского муниципального района Республики Татарстан",null,1,{"$nulls":22},0]
[11,"Азнакаевский  ","МБОУ \"Средняя общеобразовательная школа поселка Победа\" Азнакаевского муниципального района Республики Татарстан",{"$nulls":13},1,{"$nulls":10},1]
[12,"Аксубаевский ","МБОУ \"Кривоозерская средняя общеобразовательная школа имени Героя Советского Союза Г.Г. Романова\" Аксубаевского муниципального района Республики Татарстан",null,1,{"$nulls":22},0]
[13,"Актанышский","МБОУ «Такталачукская оновная общеобразовательная школа\" Актанышского муниципального района Республики Татарстан",{"$nulls":23},1,1]
[14,"Актанышский","МБОУ «Актанышская средняя общеобразовательная школа №1» Актанышского муниципального района Республики Татарстан",{"$nulls":23},1,1]
[15,"Актанышский","МБОУ \"Актанышская средняя общеобразовательная школа №2\" Актанышского муниципального района Республики Татарстан",null,1,{"$nulls":15},1,{"$nulls":5},1,2]
[16,"Актанышский ","ГАОУ \"Гуманитарная гимназия-интернат для одаренных детей\"",null,1,1,{"$nulls":3},1,null,null,1,1,{"$nulls":5},1,{"$nulls":6},2,7]
[17,"Алькеевский ","МБОУ \"Базарно-Матакская средняя общеобразовательная школа\"",{"$nulls":15},1,{"$nulls":8},1]
[18,"Алькеевский ","МБОУ \"Старо-Матакская средняя общеобразовательная школа\" Алькеевского муниципального района Республики Татарстан",{"$nulls":23},1,1]
[19,"Альметьевский","МАОУ \"Гимназия № 5\" г. Альметьевска Республики Татарстан",null,null,3,{"$nulls":7},1,{"$nulls":4},2,{"$nulls":8},6]
[20,"Альметьевский","МБОУ «Средняя общеобразовательная школа №1 им. М.К.Тагирова» Альметьевского муниципального района Республики Татарстан",{"$nulls":23},1,1]
[21,"Альметьевский","МАОУ \"Лицей №2\" г.Альметьевска Республики Татарстан",null,null,1,{"$nulls":7},1,{"$nulls":13},2]
[22,"Альметьевский","МБОУ «Гимназия №1 им.Р.Фахретдина» г.Альметьевска Республики Татарстан",null,null,1,{"$nulls":10},2,{"$nulls":10},3]
[23,"Альметьевский","ЧОУ \"Средняя школа №23 \"Менеджер\" г. Альметьевска Республики Татарстан ",{"$nulls":10},1,{"$nulls":13},1]
[24,"Альметьевский","МБОУ \"Средняя общеобразовательная школа №3\" г. Альметьевска Республики Татарстан",{"$nulls":23},2,2]
[25,"Арский","МБОУ \"Апазовская СОШ\"",{"$nulls":10},1,{"$nulls":13},1]
[26,"Арский","МБОУ \"Арская средняя общеобразовательная школа №2\" Арского муниципального района Республики Татарстан",{"$nulls":11},1,{"$nulls":12},1]
[27,"Арский","МБОУ \"Арская средняя общеобразовательная школа №6\" Арского муниципального района Республики Татарстан",{"$nulls":10},1,{"$nulls":12},1,2]
[28,"Арский","МБОУ - \"Лесхозская средняя общеобразовательная школа\" Арского муниципального района Республики Татарстан ",{"$nulls":14},1,{"$nulls":9},1]
[29,"Арский ","МБОУ - Арская гимназия №5 Арского муниципального района Республики Татарстан ",{"$nulls":15},1,{"$nulls":8},1]
[30,"Арский  ","МБОУ \"Арская средняя общеобразовательная школа №1 им. В.Ф. Ежкова с углублённым изучением отдельных предметов\" Арского муниципального района Республики Татарстан",null,null,1,{"$nulls":4},1,null,null,1,2,{"$nulls":11},2,7]
[31,"Бавлинский ","МБОУ \"Кзыл-Ярская средняя общеобразовательная школа\" Бавлинского муниципального района Республики Татарстан",{"$nulls":10},1,{"$nulls":12},1,2]
[32,"Балтасинский","МБОУ \"Нурминская средняя общеобразовательная школа\" Балтасинского муниципального района Республики Татарстан",null,null,1,{"$nulls":7},1,{"$nulls":13},2]
[33,"Балтасинский","МБОУ \"Пижмаринская ООШ\"",{"$nulls":10},1,{"$nulls":13},1]
[34,"Балтасинский ","МБОУ \"Балтасинская гимназия\" Балтасинского муниципального района Республики Татарстан",{"$nulls":5},1,{"$nulls":4},1,{"$nulls":13},2]
[35,"Балтасинский ","МБОУ \"Салаусский многопрофильный лицей\" Балтасинского муниципального района Республики Татарстан",{"$nulls":11},1,{"$nulls":12},1]
[36,"Бугульминский","МБОУ лицей - интернат имени Мустафы Онджеля Бугульминского муниципального района Республики Татарстан",null,1,{"$nulls":9},1,null,null,1,{"$nulls":9},2]
[37,"Бугульминский","Автономная некоммерческая организация общеобразовательная организация «Прогимназия №14 «Журавушка» города Бугульмы Республики Татарстан",{"$nulls":11},1,{"$nulls":12},1]
[38,"Бугульминский","МБОУ лицей № 2 Бугульминского муниципального района Республики Татарстан",null,null,3,{"$nulls":7},3,2,null,null,1,{"$nulls":8},1,10]
[39,"Бугульминский","МБОУ средней общеобразовательной школы №3 с углубленным изучением отдельных предметов Бугульминского муниципального района Республики Татарстан",{"$nulls":10},1,1,{"$nulls":11},6,8]
[40,"Бугульминский","МБОУ средняя общеобразовательная школа № 6 с углубленным изучением отдельных предметов Бугульминского муниципального района Республики Татарстан ",null,null,1,{"$nulls":6},1,1,6,{"$nulls":3},1,{"$nulls":8},10]
[41,"Бугульминский","МБОУ татарской гимназии № 14 имени Хади Атласи Бугульминского муниципального района Республики Татарстан",{"$nulls":11},3,{"$nulls":12},3]
[42,"Бугульминский"," МБОУ Карабашская средняя общеобразовательная школа № 2 Бугульминского муниципального района Республики Татарстан",{"$nulls":13},1,{"$nulls":10},1]
[43,"Бугульминский","МБОУ средней общеобразовательной школы №5 с углубленным изучением отдельных предметов  Бугульминского муниципального района Республики Татарстан",null,1,{"$nulls":8},1,1,{"$nulls":12},2]
[44,"Бугульминский","МБОУ гимназия № 7 Бугульминского муниципального района Республики Татарстан",{"$nulls":13},1,{"$nulls":10},1]
[45,"Вахитовский","МАОУ \"Лицей № 131\" Вахитовского района г. Казани",null,3,1,9,null,9,{"$nulls":4},22,{"$nulls":4},2,{"$nulls":5},2,null,null,45]
[46,"Вахитовский","МАОУ \"Средняя общеобразовательная школа №39 с углубленным изучением английского языка\" Вахитовского района г. Казани",null,null,1,{"$nulls":7},2,{"$nulls":4},1,null,1,null,1,{"$nulls":4},6]
[47,"Вахитовский","МАОУ «Средняя общеобразовательная школа №18 с углубленным изучением английского языка» Вахитовского района г. Казани",null,null,4,{"$nulls":7},2,{"$nulls":4},5,{"$nulls":7},1,12]
[48,"Вахитовский","МАОУ для детей, проявивших выдающиеся способности «Средняя общеобразовательная школа-интернат «Специализированный олимпиадно-научный центр «СОлНЦе» Вахитовского района г. Казани",null,null,5,1,null,1,null,1,null,null,14,{"$nulls":4},1,1,null,null,2,{"$nulls":4},26]
[49,"Вахитовский","МБОУ \"Лицей №5\" Вахитовского района г. Казани",{"$nulls":11},2,{"$nulls":12},2]
[50,"Вахитовский","МБОУ \"Средняя общеобразовательная школа №98 (татарско-русская)\" Вахитовского района г. Казани",{"$nulls":3},1,{"$nulls":20},1]
[51,"Вахитовский","МБОУ «Гимназия №3» Вахитовского района г. Казани",{"$nulls":10},5,{"$nulls":13},5]
[52,"Вахитовский","МБОУ «Гимназия №96» Вахитовского района г. Казани",null,null,3,{"$nulls":7},2,{"$nulls":4},1,{"$nulls":8},6]
[53,"Вахитовский","МБОУ «Средняя общеобразовательная школа №12» Вахитовского района г. Казани",{"$nulls":10},4,{"$nulls":13},4]
[54,"Вахитовский","Общеобразовательная школа-интернат «Лицей имени Н. И. Лобачевского» К(П)ФУ",{"$nulls":3},2,null,null,1,null,2,null,27,{"$nulls":3},4,4,{"$nulls":8},40]
[55,"Вахитовский","ФГКОУ «Казанское суворовское военное училище Министерства обороны Российской Федерации»",{"$nulls":16},3,{"$nulls":7},3]
[56,"Вахитовский","ГБОУ «Казанская кадетская школа-интернат имени Героя Советского Союза Б.К.Кузнецова»",{"$nulls":11},4,{"$nulls":12},4]
[57,"Верхнеуслонский ","ГАОУ \"Лицей Иннополис\"",null,null,2,4,{"$nulls":5},1,4,2,null,1,{"$nulls":10},14]
[58,"Верхнеуслонский ","ГАОУ \"Школа Иннополис\"",{"$nulls":10},1,{"$nulls":4},1,{"$nulls":8},2]
[59,"Высокогорский","МБОУ \"Шапшинская средняя общеобразовательная школа Высокогорского муниципального района Республики Татарстан\"",{"$nulls":10},1,{"$nulls":13},1]
[60,"Высокогорский","МБОУ \"Высокогорская средняя общеобразовательная школа №1 Высокогорского муниципального района Республики Татарстан\"",{"$nulls":10},1,1,{"$nulls":12},2]
[61,"Высокогорский ","МБОУ \"Дубъязкая средняя общеобразовательная школа\" Высокогорского муниципального района Республики Татарстан",{"$nulls":11},6,{"$nulls":12},6]
[62,"Елабужский","МБОУ \"Танаевская средняя общеобразовательная школа\" Елабужского муниципального района Республики Татарстан",{"$nulls":13},1,{"$nulls":10},1]
[63,"Елабужский","МБОУ \"Гимназия №1 - Центр национального образования\"Елабужского муниципального района Республики Татарстан",{"$nulls":13},1,{"$nulls":10},1]
[64,"Елабужский","МАОУ \"Полилингвальный образовательный комплекс \"Адымнар-Алабуга\" Елабужского муниципального района Республики Татарстан",{"$nulls":15},1,{"$nulls":8},1]
[65,"Елабужский","МБОУ \"Средняя общеобразовательная школа №10\" Елабужского муниципального района Республики Татарстан",{"$nulls":7},1,{"$nulls":16},1]
[66,"Заинский","МБОУ «Заинская средняя общеобразовательная школа №4» Заинского муниципального района Республики Татарстан",null,null,1,1,{"$nulls":6},1,{"$nulls":12},2,{"$f":"SUM(F67:AA67)","v":5}]
[67,"Заинский","МБОУ «Заинская средняя общеобразовательная школа №6» Заинского муниципального района Республики Татарстан",{"$nulls":10},1,{"$nulls":12},1,2]
[68,"Заинский","МБОУ «ЗСОШ №2»",{"$nulls":12},1,{"$nulls":11},1]
[69,"Заинский","МБОУ \"Заинская средняя общеобразовательная школа  № 7 с углубленным изучением отдельных предметов\" Заинского муниципального района Республики Татарстан",{"$nulls":7},1,{"$nulls":15},1,2]
[70,"Зеленодольский","МБОУ \"Лицей имени В. В. Карпова\" Зеленодольского муниципального района Республики Татарстан",{"$nulls":13},1,{"$nulls":10},1]
[71,"Зеленодольский","МБОУ \"Гимназия №3 Зеленодольского муниципального района Республики Татарстан\"",null,null,3,{"$nulls":7},3,{"$nulls":13},6]
[72,"Зеленодольский","МБОУ «Лицей №1 Зеленодольского муниципального района Республики Татарстан»",null,null,1,{"$nulls":7},2,1,{"$nulls":3},1,{"$nulls":8},5]
[73,"Зеленодольский","МБОУ \"Лицей №9 имени А.С.Пушкина Зеленодольского муниципального района Республики Татарстан\"",null,null,2,{"$nulls":6},1,2,{"$nulls":13},5]
[74,"Зеленодольский","МБОУ \"Гимназия № 5 Зеленодольского муниципального района Республики Татарстан\"\n",{"$nulls":23},1,1]
[75,"Зеленодольский ","Лицей-интернат для одарённых детей с углублённым изучением химии - филиал ФГБОУ ВО  «КНИТУ» в п.Дубровка Республики Татарстан",{"$nulls":14},1,{"$nulls":9},1]
[76,"Зеленодольский ","МБОУ «Средняя общеобразовательная школа №15 с углубленным изучением отдельных предметов Зеленодольского муниципального района Республики Татарстан\"",{"$nulls":15},1,{"$nulls":8},1]
[77,"Камско-Устьинский ","МБОУ \"Затонская средняя общеобразовательная школа имени В.П. Муравьева\" Камско-Устьинского муниципального района Республики Татарстан",{"$nulls":10},1,7,{"$nulls":12},8]
[78,"Кировский","МБОУ \"Средняя общеобразовательная школа №70 с углубленным изучениемотдельных предметов\" Кировского района г. Казани\"",{"$nulls":10},2,{"$nulls":13},2]
[79,"Кировский","МАОУ «Гимназия-интернат №4» Кировского района г.Казани",null,null,2,{"$nulls":4},1,null,1,{"$nulls":5},1,{"$nulls":8},5]
[80,"Кировский","МБОУ \"Политехнический лицей №182\" Кировского района г.Казани",null,1,{"$nulls":14},1,{"$nulls":7},1]
[81,"Кукморский","МБОУ \"Гимназия №1 имени Ч.Т.Айтматова п.г.т. Кукмор\" Кукморского муниципального района Республики Татарстан",{"$nulls":11},2,{"$nulls":12},2]
[82,"Кукморский","МБОУ «Многопрофильный лицей им. А.М.Булатова п.г.т. Кукмор \" Кукморского муниципального района Республики Татарстан",{"$nulls":11},1,null,2,{"$nulls":10},3]
[83,"Кукморский","МБОУ \"Большекукморская средняя школа им.М.М.Мансурова\" Кукморского муниципального района Республики Татарстан",{"$nulls":15},1,{"$nulls":8},1]
[84,"Кукморский","МБОУ \"Кукморская среднняя школа №3\" Кукморского муниципального района Республики Татарстан",{"$nulls":10},1,{"$nulls":13},1]
[85,"Кукморский  ","МБОУ  \"Кукморская средняя школа №4\" Кукморского муниципального района Республики Татарстан",{"$nulls":11},1,{"$nulls":11},2,3]
[86,"Лаишевский","МБОУ \"Столбищенская средняя общеобразовательная школа им. А.П.Малышева\" Лаишевского муниципального района Республики Татарстан",{"$nulls":23},1,1]
[87,"Лаишевский","МБОУ \"Рождественская средняя общеобразовательная школа\" Лаишевского муниципального района Республики Татарстан",{"$nulls":15},1,{"$nulls":8},1]
[88,"Лаишевский","МБОУ Песчано-Ковалинская средняя общеобразовательная школа Лаишевского муниципального района Республики Татарстан",{"$nulls":9},1,{"$nulls":14},1]
[89,"Лаишевский","МБОУ \"Лаишевская средняя общеобразовательная школа № 2 имени Героя Советского Союза Бориса Кирилловича Кузнецова\"",null,null,1,{"$nulls":21},1]
[90,"Лаишевский ","МБОУ «Атабаевская средняя общеобразовательная школа имени Героя Российской Федерации Ахметшина Марата Радиковича» Лаишевского муниципального района Республики Татарстан",null,1,{"$nulls":22},0]
[91,"Лениногорский","МБОУ \"Лицей №12 г.Лениногорска\" муниципального образования \"Лениногорский муниципальный район\" Республики Татарстан",null,null,1,{"$nulls":21},1]
[92,"Лениногорский","МБОУ \"Средняя общеобразовательная школа №7 г.Лениногорска» муниципального образования \"Лениногорский муниципальный район\" Республики Татарстан",null,null,1,{"$nulls":7},1,{"$nulls":4},1,{"$nulls":8},3]
[93,"Лениногорский","МБОУ \"Тимяшевская средняя общеобразовательная школа\" МО \"Лениногорский муниципальный район\" Республики Татарстан",{"$nulls":10},1,{"$nulls":13},1]
[94,"Лениногорский","МБОУ\"Гимназия №11 \"",{"$nulls":10},1,{"$nulls":13},1]
[95,"Лениногорский","МБОУ «Средняя общеобразовательная школа №2 г.Лениногорска» муниципального образования \"Лениногорский муниципальный район\" Республики Татарстан",{"$nulls":10},1,{"$nulls":13},1]
[96,"Мамадышский","МБОУ \"Лицей №2 им.ак. К.А. Валиева г.Мамадыш\" Мамадышского муниципального района Республики Татарстан",{"$nulls":7},2,null,null,1,1,{"$nulls":11},1,5]
[97,"Мамадышский","МБОУ \"Средняя общеобразовательная школа №1 г.Мамадыш\" Мамадышского муниципального района Республики Татарстан",{"$nulls":11},1,{"$nulls":12},1]
[98,"Мамадышский","МБОУ \"Средняя общеобразовательная школа №3 города Мамадыш\" Мамадышского муниципального района  Республики Татарстан",{"$nulls":10},1,2,null,2,{"$nulls":9},1,6]
[99,"Мамадышский ","МБОУ \"Средняя общеобразовательная школа №4 города Мамадыш\" Мамадышского муниципального района Республики Татарстан",{"$nulls":13},1,{"$nulls":9},4,5]
[100,"Менделеевский","МБОУ \"Гимназия №1\" Менделеевского муниципального района Республики Татарстан",null,1,{"$nulls":22},0]
[101,"Менделеевский","МБОУ \"Средняя общеобразовательная школа №3\" Менделеевского муниципального района Республики Татарстан",{"$nulls":15},1,{"$nulls":8},1]
[102,"Мензелинский","МБОУ \"Средняя общеобразовательная школа №1\" г.Мензелинска  Республики Татарстан ",{"$nulls":9},1,{"$nulls":14},1]
[103,"Мензелинский","МБОУ \"Средняя общеобразовательная школа №2\" Мензелинского муниципального района Республики Татарстан",{"$nulls":11},1,{"$nulls":12},1]
[104,"Мензелинский","МБОУ «Средняя общеобразовательная школа №3\" города Мензелинска Республики Татарстан",null,null,1,{"$nulls":12},1,{"$nulls":8},2]
[105,"Московский","МАОУ \"Лицей-интернат №2\" Московского района г. Казани",7,null,1,4,null,1,null,null,5,null,36,null,8,null,null,2,{"$nulls":6},6,null,63]
[106,"Московский","МАОУ «Гимназия №12 с татарским языком обучения имени Ф. Г. Аитовой» Московского района г. Казани",{"$nulls":10},2,{"$nulls":13},2]
[107,"Московский","МБОУ \"Гимназия № 94\" Московского района г. Казани",{"$nulls":10},1,{"$nulls":10},1,null,null,2]
[108,"Московский","МБОУ \"Гимназия №122 имени Ж.А Зайцевой\" Московского района г.Казани",null,null,1,{"$nulls":7},9,1,{"$nulls":3},1,{"$nulls":8},12]
[109,"Московский","МБОУ \"Гимназия №9\" Московского района г.Казани",{"$nulls":4},2,{"$nulls":19},2]
[110,"Московский","МБОУ «Гимназия №102 им. М.С.Устиновой» Московского района г. Казани",null,null,1,null,null,1,{"$nulls":4},3,{"$nulls":4},1,{"$nulls":8},6]
[111,"Московский","МБОУ «Средняя общеобразовательная школа №55 с углубленным изучением отдельных предметов» Московского района г.Казани",{"$nulls":11},1,{"$nulls":12},1]
[112,"Московский","МБОУ «Татарская гимназия №2 имени Шигабутдина Марджани при Казанском Федеральном Университете» Московского района г.Казани Базового учреждения Центра национального образования",{"$nulls":10},2,1,{"$nulls":12},3]
[113,"Московский","ЧОУ Школа «Елена-Сервис»",{"$nulls":10},1,{"$nulls":4},1,{"$nulls":8},2]
[114,"Муслюмовский","МБОУ \"Муслюмовская гимназия\" Муслюмовского муниципального района Республики Татарстан",{"$nulls":7},1,{"$nulls":16},1]
[115,"Набережные Челны","МАОУ  \"Лицей-интернат №84 имени Гали Акыша\" г. Набережные Челны",{"$nulls":11},1,{"$nulls":12},1]
[116,"Набережные Челны","МАОУ  «Средняя общеобразовательная школа №56»  г.  Набережные Челны",{"$nulls":15},1,{"$nulls":8},1]
[117,"Набережные Челны","ГБОУ \"Кадетская школа №82 имени Героя Советского Союза Ильдара Маннанова\"",{"$nulls":11},1,{"$nulls":12},1]
[118,"Набережные Челны","МБОУ \"Средняя общеобразовательная школа № 27\" г. Набережные Челны",{"$nulls":10},1,{"$nulls":13},1]
[119,"Набережные Челны","МАОУ города Набережные Челны \"Средняя общеобразовательная школа №51»",{"$nulls":9},1,{"$nulls":14},1]
[120,"Набережные Челны","МАОУ  города  Набережные Челны «Гимназия 57\" ",null,1,1,{"$nulls":7},1,{"$nulls":6},3,{"$nulls":6},5]
[121,"Набережные Челны","МБОУ «Средняя общеобразовательная школа № 30» г.Набережные Челны",{"$nulls":11},1,{"$nulls":12},1]
[122,"Набережные Челны","Муниципальное автономное общеобразовательное учреждение \"Средняя общеобразовательная школа №21\"",{"$nulls":11},2,null,1,{"$nulls":10},3]
[123,"Набережные Челны","МАОУ  города Набережные Челны \"Лицей №78 им. А.С.Пушкина\"",null,null,4,{"$nulls":7},5,1,1,null,null,1,{"$nulls":8},12]
[124,"Набережные Челны","МАОУ  города Набережные Челны «Гимназия №76\"",null,null,3,null,null,1,{"$nulls":4},4,{"$nulls":4},6,null,1,{"$nulls":3},1,1,null,17]
[125,"Набережные Челны","МАОУ  города Набережные Челны\" Лицей инновационных технологий №36\" ",{"$nulls":10},1,{"$nulls":13},1]
[126,"Набережные Челны","МАОУ \"Гимназия №61\"  г.  Набережные Челны",{"$nulls":10},1,{"$nulls":13},1]
[127,"Набережные Челны","МАОУ «Средняя общеобразовательная школа № 15\"  г.  Набережные Челны",{"$nulls":10},1,{"$nulls":13},1]
[128,"Набережные Челны","МАОУ «Средняя общеобразовательная школа № 34 с углубленным изучением отдельных предметов\" г.  Набережные Челны",{"$nulls":17},1,{"$nulls":6},1]
[129,"Набережные Челны","МАОУ города Набережные Челны «Гимназия №77\" ",null,2,3,null,null,1,1,{"$nulls":8},1,1,3,{"$nulls":3},1,2,null,13]
[130,"Набережные Челны","МБОУ  \"Лицей-интернат №79\" г.Набережные Челны",{"$nulls":6},1,{"$nulls":17},{"$f":"SUM(F131:AA131)","v":1}]
[131,"Набережные Челны","МБОУ \"Пушкинский пролицей №78\" г. Набережные Челны",{"$nulls":10},1,{"$nulls":13},1]
[132,"Набережные Челны","МАОУ города Набережные Челны \"Средняя общеобразовательная школа № 38\"",{"$nulls":10},1,{"$nulls":13},1]
[133,"Набережные Челны","МБОУ \"Гимназия №2 им.Мулланура Вахитова\" г.  Набережные Челны",{"$nulls":10},1,{"$nulls":13},1]
[134,"Набережные Челны","МБОУ \"Гимназия №26\"   г.  Набережные Челны",null,null,8,3,{"$nulls":4},3,null,59,1,{"$nulls":5},1,{"$nulls":3},2,null,3,80]
[135,"Набережные Челны","МБОУ \"Средняя общеобразовательная школа № 19 с углубленным изучением отдельных предметов\" г. Набережные Челны Республики Татарстан",{"$nulls":11},1,{"$nulls":12},1]
[136,"Набережные Челны","МБОУ \"Средняя общеобразовательная школа №42\" города Набережные Челны",{"$nulls":15},1,{"$nulls":8},1]
[137,"Набережные Челны","МБОУ \"Средняя общеобразовательная школа № 41\" г.Набережные Челны",null,null,1,{"$nulls":21},1]
[138,"Набережные Челны","МБОУ \"Средняя общеобразовательная школа № 60\" г. Набережные Челны Республики Татарстан",null,null,1,{"$nulls":7},1,1,{"$nulls":3},1,{"$nulls":8},4]
[139,"Набережные Челны","МБОУ \"Средняя общеобразовательная школа№6\"   г.  Набережные Челны",null,1,{"$nulls":22},0]
[140,"Набережные Челны","МБОУ «Средняя общеобразовательная школа №  32      с углубленным изучением отдельных предметов\" г.  Набережные Челны",{"$nulls":10},1,1,null,3,null,null,1,{"$nulls":6},2,8]
[141,"Набережные Челны","МБОУ «Средняя общеобразовательная школа № 58\"   г.  Набережные Челны",{"$nulls":15},1,{"$nulls":8},1]
[142,"Набережные Челны","МБОУ «Средняя общеобразовательная школа №23       \" г.  Набережные Челны",{"$nulls":11},1,{"$nulls":12},1]
[143,"Набережные Челны","МАОУ «Средняя общеобразовательная школа №50 с углубленным изучением отдельных предметов» г. Набережные Челны",{"$nulls":11},1,{"$nulls":12},1]
[144,"Набережные Челны","МАОУ города Набережные Челны \"Гимназия № 61\"",{"$nulls":15},1,{"$nulls":8},1]
[145,"Набережные Челны","МАОУ города Набережные Челны \"Средняя общеобразовательная школа №35 с углубленным изучением отдельных предметов\"",{"$nulls":21},1,null,null,1]
[146,"Набережные Челны","МБОУ \"Средняя общеобразовательная школа №20\" г. Набережные Челны",{"$nulls":6},1,{"$nulls":4},1,{"$nulls":12},2]
[147,"Набережные Челны","МБОУ \"Средняя общеобразовательная школа №18 с углубленным изучением отдельных предметов\" города Набережные Челны",1,{"$nulls":23},0]
[148,"Нижнекамский","МБОУ  \"СОШ №10\"  НМР РТ",{"$nulls":23},1,1]
[149,"Нижнекамский","МБОУ  \"СОШ №19\"  НМР РТ",{"$nulls":10},1,{"$nulls":13},1]
[150,"Нижнекамский","МБОУ  \"СОШ №28\"  НМР РТ",{"$nulls":10},1,{"$nulls":13},1]
[151,"Нижнекамский","МБОУ  \"СОШ №33\"  НМР РТ",{"$nulls":10},1,{"$nulls":9},1,{"$nulls":3},2]
[152,"Нижнекамский","МБОУ  \"Средняя общеобразовательная школа №31\"  Нижнекамского муниципального района Республики Татарстан",{"$nulls":13},1,{"$nulls":10},1]
[153,"Нижнекамский","МБОУ «Средняя общеобразовательная школа №2» Нижнекамского муниципального района Республики Татарстан",{"$nulls":23},1,1]
[154,"Нижнекамский","МБОУ \"Гимназия № 22\" Нижнекамского муниципального района Республики Татарстан",null,null,2,{"$nulls":7},2,null,null,1,null,null,1,{"$nulls":7},6]
[155,"Нижнекамский","МБОУ \"Гимназия № 25\" Нижнекамского муниципального района Республики Татарстан",{"$nulls":17},1,{"$nulls":6},1]
[156,"Нижнекамский","МБОУ \"Лицей № 14\" Нижнекамског муниципального района Республики Татарстан",{"$nulls":5},1,{"$nulls":4},1,{"$nulls":4},1,{"$nulls":4},2,{"$nulls":3},5]
[157,"Нижнекамский","МБОУ \"Лицей 35\" Нижнекамского муниципального района Республики Татарстан",null,null,2,null,null,3,{"$nulls":18},5]
[158,"Нижнекамский","МБОУ \"Лицей-интернат № 24\" Нижнекамского муниципального района Республики Татарстан",null,1,null,1,null,null,1,{"$nulls":3},6,{"$nulls":13},8]
[159,"Нижнекамский","МБОУ «Гимназия №32»  Нижнекамского муниципального района Республики Татарстан",{"$nulls":10},1,null,null,1,{"$nulls":10},2]
[160,"Нижнекамский","МБОУ «Гимназия-интернат №13\"» Нижнекамского муниципального района Республики Татарстан",{"$nulls":10},2,null,null,2,{"$nulls":10},4]
[161,"Нижнекамский","МБОУ \"Гимназия № 2\" имени Баки Урманче Нижнекамского муниципального района Республики Татарстан",{"$nulls":11},1,{"$nulls":11},6,7]
[162,"Ново-Савиновский","Инженерный лицей-интернат КНИТУ-КАИ",{"$nulls":15},1,{"$nulls":8},1]
[163,"Ново-Савиновский","ГАОУ \"Полилингвальный комплекс \"Адымнар - путь к знаниям и согласию\" г. Казани\"",{"$nulls":4},1,{"$nulls":5},1,{"$nulls":4},1,{"$nulls":8},3]
[164,"Ново-Савиновский","МБОУ «Гимназия №13 с татарским языком обучения» Ново-Савиновского района г.Казани",{"$nulls":12},2,{"$nulls":11},2]
[165,"Ново-Савиновский","МАОУ \"Лицей-интернат №7\" Ново-Савиновского района",{"$nulls":3},1,{"$nulls":6},2,{"$nulls":13},3]
[166,"Ново-Савиновский","МАОУ «Лицей №146 \"Ресурс\"» Ново-Савиновского района г. Казани",{"$nulls":10},2,{"$nulls":13},2]
[167,"Ново-Савиновский","МБОУ \"Средняя общеобразовательная школа №132 с углубленным изучением иностранных языков\" Ново-Савиновского района г. Казани\"",{"$nulls":10},1,{"$nulls":13},1]
[168,"Ново-Савиновский","МАОУ \"Основная общеобразовательная школа №30\" Ново-Савиновского района г.Казани\"",{"$nulls":10},2,{"$nulls":13},2]
[169,"Ново-Савиновский","МБОУ  «Гимназия №7 имени Героя России А.В.Козина» Ново-Савиновского района г.Казани. ",null,null,2,1,{"$nulls":3},1,null,null,14,{"$nulls":4},3,{"$nulls":4},1,{"$nulls":3},22]
[170,"Ново-Савиновский","МБОУ \"Гимназия №179 -центр образования\" Ново-Савиновского района",null,null,1,{"$nulls":7},6,{"$nulls":4},1,{"$nulls":8},8]
[171,"Ново-Савиновский","МБОУ \"Средняя общеобразовательная школа №143 с углубленным изучением отдельных предметов\" Ново-Савиновского района г.Казани\"",{"$nulls":10},1,{"$nulls":13},1]
[172,"Ново-Савиновский","МБОУ \"Лицей № 177\" Ново-Савиновского района г. Казани",{"$nulls":10},4,{"$nulls":13},4]
[173,"Ново-Савиновский","МБОУ \"Средняя общеобразовательная школа №91\" Ново-Савиновского района г. Казани\"",{"$nulls":10},1,{"$nulls":13},1]
[174,"Ново-Савиновский","МБОУ \"Лицей №23\" Ново-Савиновского района",null,null,1,{"$nulls":12},1,{"$nulls":8},2]
[175,"Ново-Савиновский","МБОУ \"Средняя общеобразовательная школа №103\" Ново-Савиновского района г.Казани",{"$nulls":10},1,{"$nulls":13},1]
[176,"Ново-Савиновский","МБОУ \"Средняя общеобразовательная школа №85\" Ново-Савиновского района г. Казани",{"$nulls":10},1,{"$nulls":13},1]
[177,"Ново-Савиновский","МБОУ «Гимназия №155 с татарским языком обучения» Ново-Савиновского района г. Казани",{"$nulls":20},1,{"$nulls":3},1]
[178,"Ново-Савиновский","МБОУ «Средняя общеобразовательная татарско-русская школа №113 с углублённым изучением отдельных предметов имени Героя России М.Р. Ахметшина» Ново-Савиновского района г. Казани",{"$nulls":23},2,2]
[179,"Ново-Савиновский","МБОУ «Средняя общеобразовательная школа № 9 с углубленным изучением английского языка» Ново-Савиновского района г.Казани",null,null,1,{"$nulls":7},3,{"$nulls":8},1,{"$nulls":4},5]
[180,"Ново-Савиновский","МБОУ «Средняя общеобразовательная школа №170 с углублённым изучением отдельных предметов» Ново-Савиновского района г. Казани",null,null,1,{"$nulls":7},2,{"$nulls":13},3]
[181,"Нурлатский","МАОУ \"Нурлатская гимназия им.М.Е.Сергеева\" Нурлатского муниципального района РТ",null,null,1,{"$nulls":7},1,null,null,1,{"$nulls":10},3]
[182,"Нурлатский","МАОУ \"Средняя общеобразовательная школа №2\" г. Нурлат Республики Татарстан",null,1,{"$nulls":9},1,{"$nulls":12},1]
[183,"Нурлатский","МАОУ \"СОШ № 4\" г.Нурлат РТ",null,null,1,{"$nulls":7},1,{"$nulls":13},2]
[184,"Нурлатский","МАОУ «Средняя общеобразовательная школа №9\" города Нурлат Республики Татарстан",{"$nulls":15},1,{"$nulls":8},1]
[185,"Нурлатский","МБОУ \"Ново-Иглайкинская СОШ\" Нурлатского муниципального района РТ",null,1,{"$nulls":22},0]
[186,"Пестречинский","МБОУ \"Богородская средняя общеобразовательная школа\" Пестречинского муниципального района Республики Татарстан",{"$nulls":14},1,{"$nulls":9},1]
[187,"Пестречинский","МБОУ \"Ленино - КокушкинскаяСОШ",{"$nulls":16},1,{"$nulls":7},1]
[188,"Пестречинский","МБОУ \"Пестречинская СОШ № 1\"",{"$nulls":11},1,{"$nulls":12},1]
[189,"Пестречинский","МБОУ \"Пестречинская средняя общеобразовательная школа №2\" Пестречинского муниципального района Республики Татарстан",{"$nulls":11},1,{"$nulls":12},1]
[190,"Приволжский","МАОУ «Гимназия №19» Приволжского района",null,1,null,1,null,null,2,2,null,null,13,2,5,null,2,6,1,{"$nulls":5},3,5,42]
[191,"Приволжский","МБОУ «Гимназия №6» Приволжского района",{"$nulls":10},1,{"$nulls":4},2,{"$nulls":8},3]
[192,"Приволжский","МБОУ «Татарско-русская средняя общеобразовательная школа №68 с углубленным изучением отдельных предметов» Приволжского района г.Казани",null,null,1,{"$nulls":20},1,2]
[193,"Приволжский","МБОУ «Лицей №35 – образовательный центр «Галактика» Приволжского района",{"$nulls":7},1,null,null,1,{"$nulls":12},1,3]
[194,"Приволжский","МБОУ «Лицей №83-Центр образования» Приволжского района",null,1,{"$nulls":8},17,{"$nulls":13},{"$f":"SUM(F195:AA195)","v":17}]
[195,"Приволжский","МБОУ «СОШ №127» Приволжского района",{"$nulls":12},1,{"$nulls":11},1]
[196,"Приволжский","МБОУ «Средняя общеобразовательная школа №24 с углубленным изучением отдельных предметов»",{"$nulls":10},1,{"$nulls":13},1]
[197,"Приволжский","МБОУ «Татаро-английская гимназия №16» Приволжского района г. Казани",{"$nulls":11},1,{"$nulls":12},1]
[198,"Приволжский","МБОУ Многопрофильный лицей №186  \"Перспектива\" Приволжского района  г. Казани",{"$nulls":13},1,{"$nulls":10},1]
[199,"Приволжский","Общеобразовательная школа \"IT-лицей ФГАОУ ВО К(П)ФУ\"",7,null,2,2,null,3,1,1,7,null,21,{"$nulls":3},1,3,{"$nulls":8},41]
[200,"Рыбно-Слободский ","МБОУ \"Рыбно-Слободская гимназия №1\" Рыбно-Слободского муниципального района Республики Татарстан",{"$nulls":10},1,{"$nulls":13},1]
[201,"Сабинский","МБОУ \"Гимназия пгт Богатые Сабы Сабинского муниципального района Республики Татарстан\"",{"$nulls":11},2,{"$nulls":4},1,{"$nulls":6},1,4]
[202,"Сабинский","МБОУ \"Изминская средняя общеобразовательная школа Сабинского муниципального района Республики Татарстан\"",1,{"$nulls":23},0]
[203,"Сабинский","МБОУ \"Шикшинская основная общеобразовательная школа Сабинского муниципального района Республики Татарстан\"",{"$nulls":11},1,{"$nulls":12},1]
[204,"Сабинский","МБОУ \"Большекибячинская средняя общеобразовательная школа Сабинского муниципального района Республики Татарстан\"",{"$nulls":11},1,{"$nulls":12},1]
[205,"Сабинский","МБОУ «Средняя общеобразовательная школа-интернат с углубленным изучением отдельных предметов для одаренных детей»  Сабинского муниципального района Республики Татарстан",null,null,1,{"$nulls":6},1,null,2,1,3,{"$nulls":8},2,3,13]
[206,"Сабинский ","МБОУ «Сатышевская средняя общеобразовательная школа Сабинского муниципального района Республики Татарстан им. Ш.З.Зиннурова»",{"$nulls":13},1,{"$nulls":10},1]
[207,"Сармановский","МБОУ \"Джалильская средняя общеобразовательная школа №1\" Сармановского муниципального района Республики Татарстан",{"$nulls":11},1,{"$nulls":12},1]
[208,"Сармановский","МБОУ \" Сармановская гимназия\" Сармановского муниципального района Республики Татарстан",null,1,{"$nulls":8},2,{"$nulls":13},2]
[209,"Приволжский","АНОО \"Международная школа Казани\"",{"$nulls":10},1,{"$nulls":4},2,{"$nulls":8},3]
[210,"Советский","МАОУ \"Гимназия №141\" Советского района",null,null,1,null,null,1,{"$nulls":18},2]
[211,"Советский","МБОУ \"Многопрофильный лицей №185\" Советского района г.Казани",{"$nulls":18},1,{"$nulls":5},1]
[212,"Советский","МБОУ «Многопрофильный лицей №187» Советского района г.Казани",{"$nulls":11},1,1,{"$nulls":11},2]
[213,"Советский","МАОУ «Лицей - инженерный центр» Советского района г. Казани",{"$nulls":15},5,{"$nulls":8},5]
[214,"Советский","МАОУ Лицей №121 им. Героя Советского Союза С.А.Ахтямова Советского района",{"$nulls":10},1,{"$nulls":3},1,{"$nulls":9},2]
[215,"Советский","МБОУ \"Гимназия №175\" Советского района г.Казани",null,null,1,{"$nulls":7},1,{"$nulls":13},2]
[216,"Советский","МБОУ \"Гимназия №8 -Центр образования\" Советского района",null,1,{"$nulls":8},1,{"$nulls":13},1]
[217,"Советский","МБОУ \"Гимназия №93\" Советского района г. Казани",{"$nulls":10},1,{"$nulls":5},1,{"$nulls":7},2]
[218,"Советский","МБОУ \"Лицей №149 \"Советского района",{"$nulls":11},1,{"$nulls":4},2,{"$nulls":7},3]
[219,"Советский","МБОУ \"Лицей №159\" Советского района",{"$nulls":10},2,{"$nulls":13},2]
[220,"Советский","МБОУ \"Средняя общеобразовательная школа № 101 имени П.А.Полушкина - Центр образования\" Советского района г.Казани",{"$nulls":10},1,{"$nulls":13},1]
[221,"Советский","МБОУ \"Многопрофильная школа №181\" Советского района г.Казани",{"$nulls":15},2,{"$nulls":8},2]
[222,"Советский","МБОУ «Гимназия №126» Советского района г. Казани",null,null,1,{"$nulls":7},1,{"$nulls":4},1,{"$nulls":8},3]
[223,"Советский","МБОУ «Гимназия №183» Советского района г.Казани",{"$nulls":15},1,{"$nulls":8},1]
[224,"Советский","МБОУ «Многопрофильная полилингвальная гимназия №180» Советского района",{"$nulls":10},4,{"$nulls":13},4]
[225,"Советский","МБОУ «Средняя общеобразовательная школа №15 с углубленным изучением отдельных предметов» Советского района г. Казани",{"$nulls":10},2,{"$nulls":13},2]
[226,"Советский","МБОУ «Средняя общеобразовательная школа №72 с углубленным изучением немецкого языка» Советского района",{"$nulls":10},2,{"$nulls":10},2,null,null,4]
[227,"Советский","МБОУ «Средняя общеобразовательная школа №84» с углубленным изучением иностранных языков Советского района",{"$nulls":10},3,{"$nulls":4},1,{"$nulls":8},4]
[228,"Советский","МБОУ \"Средняя общеобразовательная школа №167 с углубленным изучением отдельных предметов\" Советского района г. Казани",{"$nulls":10},1,{"$nulls":13},1]
[229,"Советский","МБОУ «Средняя общеобразовательная школа №86 с углубленным изучением отдельных предметов» Советского района",{"$nulls":14},1,{"$nulls":9},1]
[230,"Спасский  ","МБОУ «Бураковская средняя общеобразовательная школа Спасского муниципального района Республики Татарстан\"",{"$nulls":11},1,{"$nulls":12},1]
[231,"Спасский  ","МБОУ \"Болгарская средняя общеобразовательная школа №2\" Спасского муниципального района Республики Татарстан",{"$nulls":13},2,{"$nulls":10},2]
[232,"Тетюшский ","МБОУ «Тетюшская средняя общеобразовательная школа №1 имени Героя Советского Союза Ханжина Павла Семеновича» Тетюшского муниципального района Республики Татарстан",null,null,1,{"$nulls":4},1,{"$nulls":3},1,{"$nulls":12},3]
[233,"Тетюшский ","МБОУ  \"Тетюшская средняя общеобразовательная школа №2\" Тетюшского муниципального района Республики Татарстан",{"$nulls":11},1,{"$nulls":12},1]
[234,"Тукаевский ","МБОУ \"Семекеевская основная общеобразовательная школа\" Тукаевского муниципального района Республики Татарстан",{"$nulls":7},1,{"$nulls":16},1]
[235,"Тукаевский ","МБОУ \"Князевская средняя общеобразовательная школа\" Тукаевского муниципального района Республики Татарстан",{"$nulls":15},1,{"$nulls":8},1]
[236,"Черемшанский","ГБОУ \"Черемшанская кадетская школа-интернат имени Героя Советского Союза И.Н.Конева\" Республики Татарстан",{"$nulls":11},2,{"$nulls":12},2]
[237,"Черемшанский","МБОУ \"Черемшанский лицей\" Черемшанского муниципального района Республики Татарстан",{"$nulls":16},1,{"$nulls":7},1]
[238,"Чистопольский","МБОУ \"Средняя общеобразовательная школа №16\" Чистопольского муниципального района Республики Татарстан",{"$nulls":13},2,{"$nulls":10},2]
[239,"Чистопольский","МБОУ  \"Гимназия №1\" Чистопольского муниципального района Республики Татарстан",{"$nulls":10},3,{"$nulls":13},3]
[240,"Чистопольский","МБОУ \"Лучовская средняя общеобразовательная школа\" Чистопольского муниципального района Республики Татарстан",{"$nulls":11},1,{"$nulls":12},1]
[241,"Чистопольский","МБОУ \"Лицей №1\" Чистопольского муниципального района Республики Татарстан",null,null,1,{"$nulls":6},1,{"$nulls":5},1,1,{"$nulls":7},4]
[242,"Чистопольский","МБОУ \"Средняя общеобразовательная школа №1\" Чистопольского муниципального района РТ",null,null,1,{"$nulls":21},1]
[243,"Чистопольский","МБОУ \"Гимназия №3\" Чистопольского муниципального района Республики Татарстан",{"$nulls":10},1,{"$nulls":12},1,2]
[244,"Ютазинский","МБОУ \"Уруссинская средняя общеобразовательная школа № 3\" Ютазинского муниципального района Республики Татарстан",{"$nulls":11},2,{"$nulls":12},2]
[245,"Ютазинский ","МБОУ \"Уруссинская гимназия\" Ютазинского муниципального района Республики Татарстан",null,null,1,{"$nulls":6},1,null,1,{"$nulls":11},1,4]
[207,"Сармановский","МБОУ \"Джалильская гимназия\" Сармановского муниципального района Республики Татарстан",{"$nulls":15},1,{"$nulls":8},1]

{"sheet":"Проверки","index":2,"n_rows":85,"n_cols":6,"rows_kept":85,"hidden":true}
["Английский язык","Женский","Имеются","Алтайский край","9 класс","Победитель"]
["Астрономия","Мужской","Не имеются","Амурская область","10 класс","Призер"]
["Биология",null,null,"Архангельская область","11 класс","Участник"]
["География",null,null,"Астраханская область","9-11 класс"]
["Информатика",null,null,"Белгородская область","10-11 класс"]
["Искусство (мировая художественная культура)",null,null,"Брянская область","Девушки 9 класс"]
["Испанский язык",null,null,"Владимирская область","Девушки 9-11 класс"]
["История",null,null,"Волгоградская область","Девушки 10-11 класс"]
["Итальянский язык",null,null,"Вологодская область","Юноши 9 класс"]
["Китайский язык",null,null,"Воронежская область","Юноши 9-11 класс"]
["Литература",null,null,"г. Москва","Юноши 10-11 класс"]
["Математика",null,null,"г. Санкт-Петербург"]
["Немецкий язык",null,null,"г. Севастополь"]
["Обществознание",null,null,"Еврейская автономная область"]
["Основы безопасности жизнедеятельности",null,null,"Забайкальский край"]
["Право",null,null,"Ивановская область"]
["Русский язык",null,null,"Иркутская область"]
["Технология",null,null,"Кабардино-Балкарская Республика"]
["Физика",null,null,"Калининградская область"]
["Физическая культура",null,null,"Калужская область"]
["Французский язык",null,null,"Камчатский край"]
["Химия",null,null,"Карачаево-Черкесская Республика"]
["Экология",null,null,"Кемеровская область"]
["Экономика",null,null,"Кировская область"]
[{"$nulls":3},"Костромская область"]
[{"$nulls":3},"Краснодарский край"]
[{"$nulls":3},"Красноярский край"]
[{"$nulls":3},"Курганская область"]
[{"$nulls":3},"Курская область"]
[{"$nulls":3},"Ленинградская область"]
[{"$nulls":3},"Липецкая область"]
[{"$nulls":3},"Магаданская область"]
[{"$nulls":3},"Московская область"]
[{"$nulls":3},"Мурманская область"]
[{"$nulls":3},"Ненецкий автономный округ"]
[{"$nulls":3},"Нижегородская область"]
[{"$nulls":3},"Новгородская область"]
[{"$nulls":3},"Новосибирская область"]
[{"$nulls":3},"Омская область"]
[{"$nulls":3},"Оренбургская область"]
[{"$nulls":3},"Орловская область"]
[{"$nulls":3},"Пензенская область"]
[{"$nulls":3},"Пермский край"]
[{"$nulls":3},"Приморский край"]
[{"$nulls":3},"Псковская область"]
[{"$nulls":3},"Республика Адыгея (Адыгея)"]
[{"$nulls":3},"Республика Алтай"]
[{"$nulls":3},"Республика Башкортостан"]
[{"$nulls":3},"Республика Бурятия"]
[{"$nulls":3},"Республика Дагестан"]
[{"$nulls":3},"Республика Ингушетия"]
[{"$nulls":3},"Республика Калмыкия"]
[{"$nulls":3},"Республика Карелия"]
[{"$nulls":3},"Республика Коми"]
[{"$nulls":3},"Республика Крым"]
[{"$nulls":3},"Республика Марий Эл"]
[{"$nulls":3},"Республика Мордовия"]
[{"$nulls":3},"Республика Саха (Якутия)"]
[{"$nulls":3},"Республика Северная Осетия - Алания"]
[{"$nulls":3},"Республика Татарстан (Татарстан)"]
[{"$nulls":3},"Республика Тыва"]
[{"$nulls":3},"Республика Хакасия"]
[{"$nulls":3},"Ростовская область"]
[{"$nulls":3},"Рязанская область"]
[{"$nulls":3},"Самарская область"]
[{"$nulls":3},"Саратовская область"]
[{"$nulls":3},"Сахалинская область"]
[{"$nulls":3},"Свердловская область"]
[{"$nulls":3},"Смоленская область"]
[{"$nulls":3},"Ставропольский край"]
[{"$nulls":3},"Тамбовская область"]
[{"$nulls":3},"Тверская область"]
[{"$nulls":3},"Томская область"]
[{"$nulls":3},"Тульская область"]
[{"$nulls":3},"Тюменская область"]
[{"$nulls":3},"Удмуртская Республика"]
[{"$nulls":3},"Ульяновская область"]
[{"$nulls":3},"Хабаровский край"]
[{"$nulls":3},"Ханты-Мансийский автономный округ - Югра"]
[{"$nulls":3},"Челябинская область"]
[{"$nulls":3},"Чеченская Республика"]
[{"$nulls":3},"Чувашская Республика - Чувашия"]
[{"$nulls":3},"Чукотский автономный округ"]
[{"$nulls":3},"Ямало-Ненецкий автономный округ"]
[{"$nulls":3},"Ярославская область"]